fUSD/lending_fUSD_20250620
["ID","MTS","AMOUNT","RATE_DAILY","PERIOD"]
[366704997,1750415561582,-490.0,0.00027123,4]
[366704998,1750415561593,-3078.01,0.00027123,4]
[366704999,1750415561604,-729.0,0.00027123,4]
[366705000,1750415561615,-490.0,0.00027123,4]
[366705001,1750415561625,-646.89,0.00027123,4]
[366705002,1750415561636,-490.0,0.00027123,4]
[366705003,1750415561647,-692.86,0.00027123,4]
[366705004,1750415561658,-1111.1,0.00027123,4]
[366705005,1750415561668,-726.03,0.00027123,4]
[366705006,1750415561679,-896.01,0.00027123,4]
[366705007,1750415561690,-522.54,0.00027123,4]
[366705008,1750415561700,-211.96403698,0.00027123,4]
[366705009,1750415561711,-817.65,0.00027123,4]
[366705010,1750415561721,-153.91377309,0.00027123,4]
[366705011,1750415561732,-1212.05,0.00027123,4]
[366705012,1750415561742,-490.0,0.00027123,4]
[366705013,1750415561753,-490.0,0.00027123,4]
[366705014,1750415561764,-1510.44,0.00027123,4]
[366705015,1750415561786,-490.0,0.00027123,4]
[366705016,1750415561798,-563.12,0.00027123,4]
[366705017,1750415561810,-17404.6,0.00027123,4]
[366705018,1750415561821,-490.0,0.00027123,4]
[366705019,1750415561832,-516.42,0.00027123,4]
[366705020,1750415561843,-1966.77,0.00027123,4]
[366705021,1750415561854,-499.64,0.00027123,4]
[366705022,1750415561865,-682.61,0.00027123,4]
[366705023,1750415561876,-496.54,0.00027123,4]
[366705024,1750415561886,-1292.76,0.00027123,4]
[366705025,1750415561897,-490.0,0.00027123,4]
[366705026,1750415561908,-532.96,0.00027123,4]
[366705027,1750415561919,-490.0,0.00027123,4]
[366705028,1750415561930,-490.0,0.00027123,4]
[366705029,1750415561940,-490.0,0.00027123,4]
[366705030,1750415561951,-3089.65,0.00027123,4]
[366705031,1750415561961,-490.0,0.00027123,4]
[366705032,1750415561972,-490.0,0.00027123,4]
[366705033,1750415561984,-1110.49,0.00027123,4]
[366705034,1750415561994,-875.85,0.00027123,4]
[366705035,1750415562005,-490.0,0.00027123,4]
[366705036,1750415562018,-490.0,0.00027123,4]
[366705037,1750415562029,-808.72,0.00027123,4]
[366705038,1750415562040,-490.0,0.00027123,4]
[366705039,1750415562051,-548.1,0.00027123,4]
[366705040,1750415562063,-490.0,0.00027123,4]
[366705041,1750415562074,-1116.64,0.00027123,4]
[366705042,1750415562085,-490.0,0.00027123,4]
[366705043,1750415562096,-741.55,0.00027123,4]
[366705044,1750415562106,-490.0,0.00027123,4]
[366705045,1750415562117,-490.0,0.00027123,4]
[366705046,1750415562128,-900.32,0.00027123,4]
[366705047,1750415562143,-3388.66,0.00027123,4]
[366705048,1750415562154,-490.0,0.00027123,4]
[366705049,1750415562165,-490.0,0.00027123,4]
[366705050,1750415562176,-1386.85,0.00027123,4]
[366705051,1750415562187,-2512.9,0.00027123,4]
[366705052,1750415562198,-490.0,0.00027123,4]
[366705053,1750415562215,-490.0,0.00027123,4]
[366705054,1750415562227,-613.06,0.00027123,4]
[366705055,1750415562238,-7527.62,0.00027123,4]
[366705056,1750415562248,-7882.79,0.00027123,4]
[366705057,1750415562260,-1533.1,0.00027123,4]
[366705058,1750415562270,-490.0,0.00027123,4]
[366705059,1750415562282,-741.74,0.00027123,4]
[366705060,1750415562292,-557.61,0.00027123,4]
[366705061,1750415562303,-2444.05,0.00027123,4]
[366705062,1750415562314,-1074.56,0.00027123,4]
[366705063,1750415562324,-490.0,0.00027123,4]
[366705064,1750415562335,-716.85,0.00027123,4]
[366705065,1750415562346,-3776.02,0.00027123,4]
[366705066,1750415562357,-490.0,0.00027123,4]
[366705067,1750415562368,-759.29,0.00027123,4]
[366705068,1750415562378,-5317.42,0.00027123,4]
[366705069,1750415562390,-490.0,0.00027123,4]
[366705070,1750415562401,-508.46,0.00027123,4]
[366705071,1750415562412,-490.0,0.00027123,4]
[366705072,1750415562423,-490.0,0.00027123,4]
[366705073,1750415562434,-490.0,0.00027123,4]
[366705074,1750415562445,-1702.18,0.00027123,4]
[366705075,1750415562456,-1502.12,0.00027123,4]
[366705076,1750415562466,-490.0,0.00027123,4]
[366705077,1750415562477,-9880.35,0.00027123,4]
[366705078,1750415562487,-670.44,0.00027123,4]
[366705079,1750415562497,-2012.16,0.00027123,4]
[366705080,1750415562508,-1936.5,0.00027123,4]
[366705081,1750415562520,-6404.69,0.00027123,4]
[366705082,1750415562530,-490.0,0.00027123,4]
[366705083,1750415562541,-490.0,0.00027123,4]
[366705084,1750415562551,-490.0,0.00027123,4]
[366705085,1750415562562,-2380.6,0.00027123,4]
[366705086,1750415562572,-1141.27,0.00027123,4]
[366705087,1750415563151,-510.99,0.00027123,4]
[366705088,1750415563162,-691.59,0.00027123,4]
[366705089,1750415563173,-490.0,0.00027123,4]
[366705090,1750415563183,-490.0,0.00027123,4]
[366705091,1750415563193,-490.0,0.00027123,4]
[366705092,1750415563203,-2450.17,0.00027123,4]
[366705093,1750415563213,-1844.2,0.00027123,4]
[366705094,1750415563223,-490.0,0.00027123,4]
[366705095,1750415563233,-622.58,0.00027123,4]
[366705096,1750415563243,-490.0,0.00027123,4]
[366705097,1750415563253,-490.0,0.00027123,4]
[366705098,1750415563263,-1419.42,0.00027123,4]
[366705099,1750415563274,-17540.73,0.00027123,4]
[366705100,1750415563284,-1227.01,0.00027123,4]
[366705101,1750415563294,-490.0,0.00027123,4]
[366705102,1750415563305,-490.0,0.00027123,4]
[366705103,1750415563316,-490.0,0.00027123,4]
[366705104,1750415563326,-490.0,0.00027123,4]
[366705105,1750415563337,-490.0,0.00027123,4]
[366705106,1750415563347,-5948.54,0.00027123,4]
[366705107,1750415563357,-957.68,0.00027123,4]
[366705108,1750415563367,-490.0,0.00027123,4]
[366705109,1750415563380,-490.0,0.00027123,4]
[366705110,1750415563390,-5372.22,0.00027123,4]
[366705111,1750415563401,-1499.27,0.00027123,4]
[366705112,1750415563411,-490.0,0.00027123,4]
[366705113,1750415563422,-1525.88,0.00027123,4]
[366705114,1750415563432,-1594.4,0.00027123,4]
[366705115,1750415563443,-490.0,0.00027123,4]
[366705116,1750415563454,-18649.49,0.00027123,4]
[366705117,1750415563465,-490.0,0.00027123,4]
[366705118,1750415563476,-11431.71,0.00027123,4]
[366705119,1750415563487,-662.4,0.00027123,4]
[366705120,1750415563497,-574.02,0.00027123,4]
[366705121,1750415563508,-490.0,0.00027123,4]
[366705122,1750415563518,-490.0,0.00027123,4]
[366705123,1750415563529,-2766.75,0.00027123,4]
[366705124,1750415563539,-1747.3,0.00027123,4]
[366705125,1750415563549,-490.0,0.00027123,4]
[366705126,1750415563560,-1639.8,0.00027123,4]
[366705127,1750415563570,-490.0,0.00027123,4]
[366705128,1750415563581,-521.31,0.00027123,4]
[366705129,1750415563591,-641.47,0.00027123,4]
[366705130,1750415563601,-1452.7,0.00027123,4]
[366705131,1750415563611,-490.0,0.00027123,4]
[366705132,1750415563620,-490.0,0.00027123,4]
[366705133,1750415563630,-766.28,0.00027123,4]
[366705134,1750415563640,-1528.81,0.00027123,4]
[366705135,1750415563650,-2442.89,0.00027123,4]
[366705136,1750415563660,-490.0,0.00027123,4]
[366705137,1750415563671,-490.0,0.00027123,4]
[366705138,1750415563681,-974.85,0.00027123,4]
[366705139,1750415563691,-525.8,0.00027123,4]
[366705140,1750415563702,-655.26,0.00027123,4]
[366705141,1750415563712,-490.0,0.00027123,4]
[366705142,1750415563722,-490.0,0.00027123,4]
[366705143,1750415563732,-490.0,0.00027123,4]
[366705144,1750415563742,-6155.02,0.00027123,4]
[366705145,1750415563752,-490.0,0.00027123,4]
[366705146,1750415563762,-1546.64,0.00027123,4]
[366705147,1750415563772,-490.0,0.00027123,4]
[366705148,1750415563782,-952.09,0.00027123,4]
[366705149,1750415563793,-2556.54,0.00027123,4]
[366705150,1750415563802,-490.0,0.00027123,4]
[366705151,1750415563812,-1078.67,0.00027123,4]
[366705152,1750415563822,-1698.38,0.00027123,4]
[366705153,1750415563832,-7770.54,0.00027123,4]
[366705154,1750415563842,-490.0,0.00027123,4]
[366705155,1750415563852,-490.0,0.00027123,4]
[366705156,1750415563862,-490.0,0.00027123,4]
[366705157,1750415563872,-713.18,0.00027123,4]
[366705158,1750415563883,-490.0,0.00027123,4]
[366705159,1750415563895,-490.0,0.00027123,4]
[366705160,1750415563906,-565.57,0.00027123,4]
[366705161,1750415563916,-1078.51,0.00027123,4]
[366705162,1750415563926,-490.0,0.00027123,4]
[366705163,1750415563937,-490.0,0.00027123,4]
[366705164,1750415563947,-490.0,0.00027123,4]
[366705165,1750415563957,-511.43,0.00027123,4]
[366705166,1750415563966,-490.0,0.00027133,4]
[366705167,1750415563976,-490.0,0.00027133,4]
[366705168,1750415563986,-490.0,0.00027133,4]
[366705169,1750415563995,-490.0,0.00027133,4]
[366705170,1750415564005,-560.36069024,0.00027133,4]
[366705171,1750415564015,-503.01196609,0.00027133,4]
[366705172,1750415564025,-490.0,0.00027133,4]
[366705173,1750415564035,-490.0,0.00027133,4]
[366705174,1750415564045,-490.0,0.00027133,4]
[366705175,1750415564055,-490.0,0.00027133,4]
[366705176,1750415564065,-197.33718749,0.00027133,4]
[366705177,1750415564075,-490.0,0.00027133,4]
[366705178,1750415564086,-490.0,0.00027133,4]
[366705179,1750415564096,-493.71788941,0.00027133,4]
[366705180,1750415564106,-490.0,0.00027133,4]
[366705181,1750415564116,-222.05362805,0.00027133,4]
[366705182,1750415564126,-490.0,0.00027133,4]
[366705183,1750415564137,-490.0,0.00027133,4]
[366705184,1750415564147,-490.0,0.00027133,4]
[366705185,1750415564158,-490.0,0.00027133,4]
[366705186,1750415564168,-709.67,0.00027133,4]
[366705187,1750415564178,-490.0,0.00027133,4]
[366705188,1750415564188,-490.0,0.00027133,4]
[366705189,1750415564198,-490.0,0.00027133,4]
[366705190,1750415564208,-716.73,0.00027133,4]
[366705191,1750415564218,-490.0,0.00027133,4]
[366705192,1750415564228,-879.88,0.00027133,4]
[366705193,1750415564238,-490.0,0.00027133,4]
[366705194,1750415564248,-490.0,0.00027133,4]
[366705195,1750415564258,-490.0,0.00027133,4]
[366705196,1750415564268,-490.0,0.00027133,4]
[366705197,1750415564278,-490.0,0.00027133,4]
[366705198,1750415564289,-490.0,0.00027133,4]
[366705199,1750415564299,-490.0,0.00027133,4]
[366705200,1750415564308,-490.0,0.00027133,4]
[366705201,1750415564318,-490.0,0.00027133,4]
[366705202,1750415564328,-490.0,0.00027133,4]
[366705203,1750415564338,-490.0,0.00027133,4]
[366705204,1750415564349,-490.0,0.00027133,4]
[366705205,1750415564360,-1218.9,0.00027133,4]
[366705206,1750415564370,-901.28,0.00027133,4]
[366705207,1750415564380,-507.19,0.00027133,4]
[366705208,1750415564390,-490.0,0.00027133,4]
[366705209,1750415564400,-490.0,0.00027133,4]
[366705210,1750415564409,-584.6,0.00027133,4]
[366705211,1750415564422,-490.0,0.00027133,4]
[366705212,1750415564433,-490.0,0.00027133,4]
[366705213,1750415564443,-490.0,0.00027133,4]
[366705214,1750415564455,-490.0,0.00027133,4]
[366705215,1750415564465,-490.0,0.00027133,4]
[366705216,1750415564476,-622.15465892,0.00027133,4]
[366705217,1750415564486,-490.0,0.00027133,4]
[366705218,1750415564497,-434.75428141,0.00027133,4]
[366705219,1750415564506,-490.0,0.00027133,4]
[366705220,1750415564517,-490.0,0.00027133,4]
[366705221,1750415564527,-490.0,0.00027133,4]
[366705222,1750415564539,-490.0,0.00027133,4]
[366705223,1750415564549,-624.83,0.00027133,4]
[366705224,1750415564559,-490.0,0.00027133,4]
[366705225,1750415564569,-490.0,0.00027133,4]
[366705226,1750415564579,-947.23,0.00027133,4]
[366705227,1750415564589,-497.34,0.00027133,4]
[366705228,1750415564599,-1160.0,0.00027133,4]
[366705229,1750415564609,-682.25,0.00027133,4]
[366705230,1750415564619,-676.69,0.00027133,4]
[366705231,1750415564629,-798.57,0.00027133,4]
[366705232,1750415564640,-490.0,0.00027133,4]
[366705233,1750415564649,-490.0,0.00027133,4]
[366705234,1750415564659,-490.0,0.00027133,4]
[366705235,1750415564671,-490.0,0.00027133,4]
[366705236,1750415564681,-490.0,0.00027133,4]
[366705237,1750415564691,-490.0,0.00027133,4]
[366705238,1750415564703,-237.51531269,0.00027133,4]
[366705239,1750415564714,-490.0,0.00027133,4]
[366705240,1750415564724,-994.26,0.00027133,4]
[366705241,1750415564734,-490.0,0.00027133,4]
[366705242,1750415564743,-490.0,0.00027133,4]
[366705243,1750415564753,-504.86,0.00027133,4]
[366705244,1750415564764,-1262.16,0.00027133,4]
[366705245,1750415564774,-490.0,0.00027133,4]
[366705246,1750415564784,-526.89,0.00027133,4]
[366705247,1750415564794,-490.0,0.00027133,4]
[366705248,1750415564805,-490.0,0.00027133,4]
[366705249,1750415564815,-562.08,0.00027133,4]
[366705250,1750415564825,-490.0,0.00027133,4]
[366705251,1750415564835,-545.75,0.00027133,4]
[366705252,1750415564846,-1061.69,0.00027133,4]
[366705253,1750415564856,-490.0,0.00027133,4]
[366705254,1750415564866,-809.96,0.00027133,4]
[366705255,1750415564876,-631.0,0.00027133,4]
[366705256,1750415564886,-1378.13,0.00027133,4]
[366705257,1750415564895,-490.0,0.00027133,4]
[366705258,1750415564905,-164.30783629,0.00027133,4]
[366705259,1750415564915,-490.0,0.00027133,4]
[366705260,1750415564925,-490.0,0.00027133,4]
[366705261,1750415564934,-490.0,0.00027133,4]
[366705262,1750415564944,-559.26,0.00027133,4]
[366705263,1750415564954,-490.0,0.00027133,4]
[366705264,1750415564964,-707.03,0.00027133,4]
[366705265,1750415564975,-490.0,0.00027133,4]
[366705266,1750415564984,-2021.51,0.00027133,4]
[366705267,1750415564995,-547.36,0.00027133,4]
[366705268,1750415565005,-1831.85,0.00027133,4]
[366705269,1750415565015,-606.95,0.00027133,4]
[366705270,1750415565027,-1476.65,0.00027133,4]
[366705271,1750415565037,-490.0,0.00027133,4]
[366705272,1750415565048,-490.0,0.00027133,4]
[366705273,1750415565058,-199.87480487,0.00027133,4]
[366705274,1750415565069,-490.0,0.00027133,4]
[366705275,1750415565081,-490.0,0.00027133,4]
[366705276,1750415565091,-490.0,0.00027133,4]
[366705277,1750415565101,-1005.12,0.00027133,4]
[366705278,1750415565111,-1516.56,0.00027133,4]
[366705279,1750415565121,-600.95,0.00027133,4]
[366705280,1750415565132,-490.0,0.00027133,4]
[366705281,1750415565144,-490.0,0.00027133,4]
[366705282,1750415565154,-490.0,0.00027133,4]
[366705283,1750415565164,-490.0,0.00027133,4]
[366705284,1750415565174,-302.3,0.00027133,4]
[366705285,1750415565184,-1853.92,0.00027133,4]
[366705286,1750415565195,-490.0,0.00027133,4]
[366705287,1750415565204,-490.0,0.00027133,4]
[366705288,1750415565214,-1207.48,0.00027133,4]
[366705289,1750415565224,-970.42,0.00027133,4]
[366705290,1750415565234,-490.0,0.00027133,4]
[366705291,1750415565244,-1085.47,0.00027133,4]
[366705292,1750415565254,-555.86,0.00027133,4]
[366705293,1750415565265,-1321.89,0.00027133,4]
[366705294,1750415565275,-907.27,0.00027133,4]
[366705295,1750415565285,-490.0,0.00027133,4]
[366705296,1750415565295,-494.73531321,0.00027133,4]
[366705297,1750415565305,-490.0,0.00027133,4]
[366705298,1750415565315,-490.0,0.00027133,4]
[366705299,1750415565325,-490.0,0.00027133,4]
[366705300,1750415565335,-490.0,0.00027133,4]
[366705301,1750415565346,-490.0,0.00027133,4]
[366705302,1750415565357,-1835.37,0.00027133,4]
[366705303,1750415565367,-490.0,0.00027133,4]
[366705304,1750415565376,-490.0,0.00027133,4]
[366705305,1750415565387,-556.59,0.00027133,4]
[366705306,1750415565396,-1052.99,0.00027133,4]
[366705307,1750415565406,-490.0,0.00027133,4]
[366705308,1750415565418,-567.01,0.00027133,4]
[366705309,1750415565428,-492.0,0.00027133,4]
[366705310,1750415565439,-819.36,0.00027133,4]
[366705311,1750415565449,-2175.07,0.00027133,4]
[366705312,1750415565460,-490.0,0.00027133,4]
[366705313,1750415565470,-789.56,0.00027133,4]
[366705314,1750415565480,-1474.82,0.00027133,4]
[366705315,1750415565490,-490.0,0.00027133,4]
[366705316,1750415565500,-280.99147454,0.00027133,4]
[366705317,1750415565510,-1752.57,0.00027133,4]
[366705318,1750415565521,-490.0,0.00027133,4]
[366705319,1750415565531,-490.0,0.00027133,4]
[366705320,1750415565543,-490.0,0.00027133,4]
[366705321,1750415565554,-2581.66,0.00027133,4]
[366705322,1750415565564,-490.0,0.00027133,4]
[366705323,1750415565575,-1705.52,0.00027133,4]
[366705324,1750415565586,-490.0,0.00027133,4]
[366705325,1750415565597,-490.0,0.00027133,4]
[366705326,1750415565608,-1306.7,0.00027133,4]
[366705327,1750415565618,-490.0,0.00027133,4]
[366705328,1750415565629,-525.6,0.00027133,4]
[366705329,1750415565640,-490.0,0.00027133,4]
[366705330,1750415565760,-737.94,0.00027133,4]
[366705331,1750415565770,-490.0,0.00027133,4]
[366705332,1750415565780,-490.0,0.00027133,4]
[366705333,1750415565790,-490.0,0.00027133,4]
[366705334,1750415565799,-616.11,0.00027133,4]
[366705335,1750415565809,-749.2,0.00027133,4]
[366705336,1750415565819,-490.0,0.00027133,4]
[366705337,1750415565829,-1450.49,0.00027133,4]
[366705338,1750415565838,-733.41,0.00027133,4]
[366705339,1750415565848,-490.0,0.00027133,4]
[366705340,1750415565857,-2517.34,0.00027133,4]
[366705341,1750415565866,-490.0,0.00027133,4]
[366705342,1750415565876,-490.0,0.00027133,4]
[366705343,1750415565886,-647.98,0.00027133,4]
[366705344,1750415565898,-1420.61,0.00027133,4]
[366705345,1750415565909,-666.21,0.00027133,4]
[366705346,1750415565920,-490.0,0.00027133,4]
[366705347,1750415565931,-798.3,0.00027133,4]
[366705348,1750415565941,-490.0,0.00027133,4]
[366705349,1750415565950,-490.0,0.00027133,4]
[366705350,1750415565960,-490.0,0.00027133,4]
[366705351,1750415565970,-490.0,0.00027133,4]
[366705352,1750415565981,-629.3,0.00027133,4]
[366705353,1750415565991,-744.22,0.00027133,4]
[366705354,1750415566001,-490.0,0.00027133,4]
[366705355,1750415566012,-824.71,0.00027133,4]
[366705356,1750415566022,-1579.86,0.00027133,4]
[366705357,1750415566033,-525.37097396,0.00027133,4]
[366705358,1750415566044,-490.0,0.00027133,4]
[366705359,1750415566053,-490.0,0.00027133,4]
[366705360,1750415566063,-1499.44,0.00027133,4]
[366705361,1750415566073,-509.05,0.00027133,4]
[366705362,1750415566082,-2238.49,0.00027133,4]
[366705363,1750415566093,-490.0,0.00027133,4]
[366705364,1750415566103,-597.0,0.00027133,4]
[366705365,1750415566113,-490.0,0.00027133,4]
[366705366,1750415566124,-490.0,0.00027133,4]
[366705367,1750415566133,-933.51,0.00027133,4]
[366705368,1750415566144,-490.0,0.00027133,4]
[366705369,1750415566157,-822.58,0.00027133,4]
[366705370,1750415566167,-838.77,0.00027133,4]
[366705371,1750415566176,-504.68,0.00027133,4]
[366705372,1750415566185,-507.81,0.00027133,4]
[366705373,1750415566195,-490.0,0.00027133,4]
[366705374,1750415566204,-490.0,0.00027133,4]
[366705375,1750415566215,-490.0,0.00027133,4]
[366705376,1750415566224,-572.5,0.00027133,4]
[366705377,1750415566234,-490.0,0.00027133,4]
[366705378,1750415566244,-490.0,0.00027133,4]
[366705379,1750415566254,-1129.55,0.00027133,4]
[366705380,1750415566264,-858.91,0.00027133,4]
[366705381,1750415566274,-490.0,0.00027133,4]
[366705382,1750415566284,-800.69,0.00027133,4]
[366705383,1750415566294,-1036.77,0.00027133,4]
[366705384,1750415566303,-490.0,0.00027133,4]
[366705385,1750415566313,-1310.63,0.00027133,4]
[366705386,1750415566323,-490.0,0.00027133,4]
[366705387,1750415566333,-867.83,0.00027133,4]
[366705388,1750415566343,-545.19,0.00027133,4]
[366705389,1750415566352,-1236.78,0.00027133,4]
[366705390,1750415566362,-490.0,0.00027133,4]
[366705391,1750415566372,-490.0,0.00027133,4]
[366705392,1750415566382,-233.94219818,0.00027133,4]
[366705393,1750415566391,-490.0,0.00027133,4]
[366705394,1750415566401,-509.27,0.00027133,4]
[366705395,1750415566411,-490.0,0.00027133,4]
[366705396,1750415566421,-490.0,0.00027133,4]
[366705397,1750415566431,-1804.01,0.00027133,4]
[366705398,1750415566441,-490.0,0.00027133,4]
[366705399,1750415566450,-490.0,0.00027133,4]
[366705400,1750415566460,-1718.47,0.00027133,4]
[366705401,1750415566470,-490.0,0.00027133,4]
[366705402,1750415566480,-528.49,0.00027133,4]
[366705403,1750415566490,-490.0,0.00027133,4]
[366705404,1750415566500,-808.69,0.00027133,4]
[366705405,1750415566510,-490.0,0.00027133,4]
[366705406,1750415566520,-490.0,0.00027133,4]
[366705407,1750415566530,-490.0,0.00027133,4]
[366705408,1750415566540,-726.13,0.00027133,4]
[366705409,1750415566551,-490.0,0.00027133,4]
[366705410,1750415566560,-151.0,0.00027134,7]
[366705411,1750415566572,-532.770792,0.00027134,7]
[366705412,1750415566591,-532.770792,0.00027134,7]
[366705413,1750415566600,-490.0,0.00027134,4]
[366705414,1750415566611,-490.0,0.00027134,4]
[366705415,1750415566622,-924.0,0.00027134,4]
[366705416,1750415566632,-490.0,0.00027134,4]
[366705417,1750415566642,-490.0,0.00027134,4]
[366705418,1750415566651,-490.0,0.00027134,4]
[366705419,1750415566661,-490.0,0.00027134,4]
[366705420,1750415566670,-490.0,0.00027134,4]
[366705421,1750415566680,-555.64,0.00027134,4]
[366705422,1750415566690,-490.0,0.00027134,4]
[366705423,1750415566700,-560.67,0.00027134,4]
[366705424,1750415566710,-714.6,0.00027134,4]
[366705425,1750415566720,-490.0,0.00027134,4]
[366705426,1750415566730,-490.0,0.00027134,4]
[366705427,1750415566740,-584.97,0.00027134,4]
[366705428,1750415566750,-490.0,0.00027134,4]
[366705429,1750415566760,-528.72,0.00027134,4]
[366705430,1750415566770,-490.0,0.00027134,4]
[366705431,1750415566780,-490.0,0.00027134,4]
[366705432,1750415566790,-490.0,0.00027134,4]
[366705433,1750415566799,-490.0,0.00027134,4]
[366705434,1750415566809,-490.0,0.00027134,4]
[366705435,1750415566818,-490.0,0.00027134,4]
[366705436,1750415566827,-490.0,0.00027134,4]
[366705437,1750415566837,-595.37,0.00027134,4]
[366705438,1750415566847,-775.47665243,0.00027141,16]
[366705439,1750415566857,-151.0,0.00027147,7]
[366705440,1750415566866,-330.739152,0.00027147,7]
[366705441,1750415566876,-330.739152,0.00027147,7]
[366705442,1750415566885,-151.0,0.00027147,7]
[366705443,1750415566895,-267.958731,0.00027147,7]
[366705444,1750415566905,-267.958731,0.00027147,7]
[366705445,1750415566915,-292.252983,0.00027149,7]
[366705446,1750415566925,-292.252977,0.00027149,7]
[366705447,1750415566935,-151.0,0.00027149,7]
[366705448,1750415566944,-151.0,0.00027149,7]
[366705449,1750415566954,-151.0,0.00027149,7]
[366705450,1750415566963,-281.581916,0.00027149,7]
[366705451,1750415566974,-151.0,0.00027149,7]
[366705452,1750415566983,-204.379099,0.00027149,7]
[366705453,1750415566992,-204.379099,0.00027149,7]
[366705454,1750415567001,-151.0,0.00027149,7]
[366705455,1750415567011,-1127.639614,0.00027149,7]
[366705456,1750415567021,-166.142536,0.00027149,7]
[366705457,1750415567031,-166.142536,0.00027149,7]
[366705458,1750415567041,-1999.99999801,0.00027166,4]
[366705459,1750415567050,-325.210147,0.0002717,7]
[366705460,1750415567060,-325.210147,0.0002717,7]
[366705461,1750415567069,-500.73,0.00027199,2]
[366705462,1750415567079,-11521.38,0.000272,2]
[366705463,1750415567090,-229.0,0.00027208,7]
[366705464,1750415567100,-300.0,0.00027227,2]
[366705465,1750415567110,-223.0315306,0.00027228,2]
[366705466,1750415567120,-311.3287456,0.00027234,2]
[366705467,1750415567130,-151.77675645,0.0002725,2]
[366705468,1750415567140,-151.0,0.00027253,7]
[366705469,1750415567150,-532.770792,0.00027253,7]
[366705470,1750415567160,-532.770792,0.00027253,7]
[366705471,1750415567170,-490.0,0.00027261,4]
[366705472,1750415567180,-252.6844738,0.00027279,2]
[366705473,1750415567190,-252.6844738,0.00027279,2]
[366705474,1750415567200,-398.759128,0.0002728,7]
[366705475,1750415567210,-398.759128,0.0002728,7]
[366705476,1750415567219,-178.815455,0.0002728,7]
[366705477,1750415567229,-178.815455,0.0002728,7]
[366705478,1750415567239,-258.53542,0.0002728,7]
[366705479,1750415567249,-258.535425,0.0002728,7]
[366705480,1750415567258,-346.871646,0.0002728,7]
[366705481,1750415567268,-346.871646,0.0002728,7]
[366705482,1750415567278,-249.55227,0.00027281,7]
[366705483,1750415567287,-249.552278,0.00027281,7]
[366705484,1750415567297,-851.127774,0.00027281,7]
[366705485,1750415567306,-851.127774,0.00027281,7]
[366705486,1750415567316,-820.27178,0.00027281,7]
[366705487,1750415567325,-820.271779,0.00027281,7]
[366705488,1750415567335,-151.0,0.00027281,7]
[366705489,1750415567344,-262.658617,0.00027281,7]
[366705490,1750415567353,-262.658622,0.00027281,7]
[366705491,1750415567363,-316.98,0.00027281,7]
[366705492,1750415567372,-316.98,0.00027281,7]
[366705493,1750415567382,-1583.0,0.000273,2]
[366705494,1750415567392,-181244.28678121,0.000273,5]
[366705495,1750415567402,-10350.46781165,0.000273,5]
[366705496,1750415567411,-55571.7840186,0.000273,4]